[Event "*** SCC Grand Prix: Titled Tuesday Blitz"]
[Site "Chess.com"]
[Date "2020.10.13"]
[Round "1"]
[White "TotsukaBlade"]
[Black "Gabrielian_Artur"]
[Result "1/2-1/2"]
[WhiteElo "2431"]
[BlackElo "2796"]
[TimeControl "180+1"]
[EndTime "10:09:43 PDT"]
[Termination "Game drawn - insufficient material"]

1. e4 {[%clk 0:02:59.7]} 1... c5 {[%clk 0:02:59.5]} 2. Nf3 {[%clk 0:02:59.2]}
2... d6 {[%clk 0:02:59.3]} 3. Bb5+ {[%clk 0:02:59]} 3... Nd7 {[%clk 0:02:59]} 4.
Ba4 {[%clk 0:02:59]} 4... Nf6 {[%clk 0:02:58.3]} 5. O-O {[%clk 0:02:58.9]} 5...
e6 {[%clk 0:02:57.1]} 6. Re1 {[%clk 0:02:56.3]} 6... Be7 {[%clk 0:02:56.6]} 7.
c3 {[%clk 0:02:49.6]} 7... a6 {[%clk 0:02:54.6]} 8. d4 {[%clk 0:02:47.4]} 8...
b5 {[%clk 0:02:54.7]} 9. Bc2 {[%clk 0:02:47.3]} 9... e5 {[%clk 0:02:54.9]} 10.
Nbd2 {[%clk 0:02:40.6]} 10... O-O {[%clk 0:02:54.1]} 11. Nf1 {[%clk 0:02:40.4]}
11... cxd4 {[%clk 0:02:52]} 12. cxd4 {[%clk 0:02:40.3]} 12... Bb7 {[%clk
0:02:51.1]} 13. Ng3 {[%clk 0:02:37.8]} 13... g6 {[%clk 0:02:46.7]} 14. Bh6
{[%clk 0:02:30.3]} 14... Re8 {[%clk 0:02:46.3]} 15. Qd2 {[%clk 0:02:27.9]} 15...
Bf8 {[%clk 0:02:45.2]} 16. Rad1 {[%clk 0:01:48.1]} 16... Rc8 {[%clk 0:02:40.2]}
17. Bb3 {[%clk 0:01:36.8]} 17... exd4 {[%clk 0:02:39.7]} 18. Bxf8 {[%clk
0:01:32.7]} 18... Nxf8 {[%clk 0:02:32.1]} 19. Qxd4 {[%clk 0:01:31.6]} 19... Qe7
{[%clk 0:01:47]} 20. h3 {[%clk 0:00:51.5]} 20... Kg7 {[%clk 0:01:39]} 21. Qxd6
{[%clk 0:00:45.3]} 21... Qxd6 {[%clk 0:01:37.7]} 22. Rxd6 {[%clk 0:00:45]} 22...
a5 {[%clk 0:01:21.2]} 23. Ng5 {[%clk 0:00:35]} 23... Re7 {[%clk 0:01:09]} 24. e5
{[%clk 0:00:26.8]} 24... N6d7 {[%clk 0:00:47.9]} 25. e6 {[%clk 0:00:23.9]} 25...
Nc5 {[%clk 0:00:41.9]} 26. Nxf7 {[%clk 0:00:20.2]} 26... Nxb3 {[%clk 0:00:41.3]}
27. axb3 {[%clk 0:00:20.9]} 27... Rc6 {[%clk 0:00:32.2]} 28. Rxc6 {[%clk
0:00:20.2]} 28... Bxc6 {[%clk 0:00:32.6]} 29. Ng5 {[%clk 0:00:18.6]} 29... h6
{[%clk 0:00:32.2]} 30. Nf3 {[%clk 0:00:16.6]} 30... Bxf3 {[%clk 0:00:32.3]} 31.
gxf3 {[%clk 0:00:17]} 31... Nxe6 {[%clk 0:00:30.2]} 32. Re5 {[%clk 0:00:17]}
32... b4 {[%clk 0:00:29.1]} 33. Rxa5 {[%clk 0:00:16.4]} 33... Nd4 {[%clk
0:00:27.3]} 34. Kg2 {[%clk 0:00:16]} 34... Rb7 {[%clk 0:00:24.7]} 35. Ra6 {[%clk
0:00:12.1]} 35... Nxb3 {[%clk 0:00:22.9]} 36. Ne4 {[%clk 0:00:12.4]} 36... Nd4
{[%clk 0:00:21.7]} 37. Nd6 {[%clk 0:00:12.2]} 37... Re7 {[%clk 0:00:17.8]} 38.
Ne4 {[%clk 0:00:10.3]} 38... Nf5 {[%clk 0:00:16.8]} 39. Rb6 {[%clk 0:00:09.6]}
39... Nh4+ {[%clk 0:00:16.1]} 40. Kg3 {[%clk 0:00:09.9]} 40... Nf5+ {[%clk
0:00:16.3]} 41. Kg2 {[%clk 0:00:10.5]} 41... Nh4+ {[%clk 0:00:16.3]} 42. Kg3
{[%clk 0:00:11]} 42... g5 {[%clk 0:00:17]} 43. Rxb4 {[%clk 0:00:10.9]} 43... Rf7
{[%clk 0:00:17.1]} 44. Rb3 {[%clk 0:00:10.7]} 44... Nf5+ {[%clk 0:00:17.3]} 45.
Kg2 {[%clk 0:00:10.6]} 45... Nd4 {[%clk 0:00:17.9]} 46. Rd3 {[%clk 0:00:10.5]}
46... Ne2 {[%clk 0:00:18.1]} 47. Ra3 {[%clk 0:00:09.4]} 47... Nf4+ {[%clk
0:00:18.2]} 48. Kg3 {[%clk 0:00:09.6]} 48... Rc7 {[%clk 0:00:18.5]} 49. b4
{[%clk 0:00:07.9]} 49... Rc1 {[%clk 0:00:17.8]} 50. b5 {[%clk 0:00:08.1]} 50...
Rh1 {[%clk 0:00:16.1]} 51. Kg4 {[%clk 0:00:07.5]} 51... Kg6 {[%clk 0:00:16]} 52.
Ra6+ {[%clk 0:00:07]} 52... Kg7 {[%clk 0:00:16.5]} 53. b6 {[%clk 0:00:07.3]}
53... Rb1 {[%clk 0:00:16]} 54. Ra7+ {[%clk 0:00:07.2]} 54... Kg6 {[%clk
0:00:16.5]} 55. Ra6 {[%clk 0:00:06.6]} 55... h5+ {[%clk 0:00:16.3]} 56. Kg3
{[%clk 0:00:06.9]} 56... Rg1+ {[%clk 0:00:15.2]} 57. Kh2 {[%clk 0:00:07.2]}
57... Rb1 {[%clk 0:00:14.1]} 58. b7+ {[%clk 0:00:06.4]} 58... Kf5 {[%clk
0:00:14.6]} 59. Ra7 {[%clk 0:00:06.2]} 59... Ne6 {[%clk 0:00:12.7]} 60. Ra5+
{[%clk 0:00:05.8]} 60... Kf4 {[%clk 0:00:12.8]} 61. Nd2 {[%clk 0:00:05.8]} 61...
Rxb7 {[%clk 0:00:11]} 62. Ra4+ {[%clk 0:00:06.2]} 62... Kf5 {[%clk 0:00:10.7]}
63. Ra5+ {[%clk 0:00:06.8]} 63... Kg6 {[%clk 0:00:10.7]} 64. Ne4 {[%clk
0:00:06.4]} 64... Rb6 {[%clk 0:00:10]} 65. Re5 {[%clk 0:00:05.2]} 65... Ra6
{[%clk 0:00:09.2]} 66. Rb5 {[%clk 0:00:04.8]} 66... Rc6 {[%clk 0:00:08.6]} 67.
Ra5 {[%clk 0:00:04.1]} 67... h4 {[%clk 0:00:08.5]} 68. Rd5 {[%clk 0:00:03.8]}
68... Rb6 {[%clk 0:00:07.4]} 69. Rd6 {[%clk 0:00:04.3]} 69... Kf5 {[%clk
0:00:06.9]} 70. Rxb6 {[%clk 0:00:04.3]} 70... Nd4 {[%clk 0:00:06.2]} 71. Rb8
{[%clk 0:00:04]} 71... Nxf3+ {[%clk 0:00:06.3]} 72. Kg2 {[%clk 0:00:04.4]} 72...
Ne1+ {[%clk 0:00:06.8]} 73. Kf1 {[%clk 0:00:05.3]} 73... Nf3 {[%clk 0:00:07]}
74. Ke2 {[%clk 0:00:05.5]} 74... Nd4+ {[%clk 0:00:06.7]} 75. Kd3 {[%clk
0:00:05.4]} 75... Ne6 {[%clk 0:00:05.7]} 76. Rb5+ {[%clk 0:00:05.1]} 76... Kf4
{[%clk 0:00:05.6]} 77. Nxg5 {[%clk 0:00:05]} 77... Nxg5 {[%clk 0:00:05.4]} 78.
Rb4+ {[%clk 0:00:05.9]} 78... Kf3 {[%clk 0:00:03.5]} 79. Rxh4 {[%clk 0:00:06]}
79... Kxf2 {[%clk 0:00:04.1]} 80. Rh5 {[%clk 0:00:06.4]} 80... Ne6 {[%clk
0:00:03.9]} 81. Ke4 {[%clk 0:00:06.8]} 81... Kg3 {[%clk 0:00:04.3]} 82. h4
{[%clk 0:00:06.7]} 82... Kg4 {[%clk 0:00:04.1]} 83. Rh8 {[%clk 0:00:06.7]} 83...
Nc5+ {[%clk 0:00:02.5]} 84. Ke5 {[%clk 0:00:06.9]} 84... Nd3+ {[%clk 0:00:03]}
85. Kf6 {[%clk 0:00:07.2]} 85... Nf4 {[%clk 0:00:03.6]} 86. Kf7 {[%clk
0:00:06.4]} 86... Nh5 {[%clk 0:00:03.2]} 87. Kg6 {[%clk 0:00:06.2]} 87... Nf4+
{[%clk 0:00:03.2]} 88. Kf6 {[%clk 0:00:06.7]} 88... Nh5+ {[%clk 0:00:03.6]} 89.
Kg6 {[%clk 0:00:07.3]} 89... Nf4+ {[%clk 0:00:03.8]} 90. Kf6 {[%clk 0:00:07.5]}
90... Nh5+ {[%clk 0:00:04.1]} 91. Kf7 {[%clk 0:00:07.8]} 91... Nf4 {[%clk
0:00:03.3]} 92. Rg8+ {[%clk 0:00:07.6]} 92... Kxh4 {[%clk 0:00:03.4]} 93. Rh8+
{[%clk 0:00:08.2]} 93... Kg5 {[%clk 0:00:03.3]} 94. Rh5+ {[%clk 0:00:08.4]}
94... Kxh5 {[%clk 0:00:03.4]} 1/2-1/2

[Event "*** SCC Grand Prix: Titled Tuesday Blitz"]
[Site "Chess.com"]
[Date "2020.10.13"]
[Round "1"]
[White "PetrolulSah"]
[Black "PrinceMurad09"]
[Result "1/2-1/2"]
[WhiteElo "2177"]
[BlackElo "2535"]
[TimeControl "180+1"]
[EndTime "10:09:45 PDT"]
[Termination "Game drawn by 50-move rule"]

1. d4 {[%clk 0:02:58.9]} 1... Nf6 {[%clk 0:02:59.6]} 2. c4 {[%clk 0:02:56.1]}
2... c5 {[%clk 0:02:59.1]} 3. Nf3 {[%clk 0:02:54.4]} 3... cxd4 {[%clk 0:02:56]}
4. Nxd4 {[%clk 0:02:53.8]} 4... e5 {[%clk 0:02:53.8]} 5. Nb5 {[%clk 0:02:52]}
5... d5 {[%clk 0:02:49.3]} 6. cxd5 {[%clk 0:02:51.1]} 6... Bc5 {[%clk
0:02:48.5]} 7. g3 {[%clk 0:02:44.4]} 7... O-O {[%clk 0:02:43.1]} 8. N5c3 {[%clk
0:02:41.5]} 8... e4 {[%clk 0:02:39.7]} 9. Bg2 {[%clk 0:02:40.3]} 9... Re8 {[%clk
0:02:40]} 10. O-O {[%clk 0:02:39.4]} 10... b6 {[%clk 0:02:35]} 11. Bg5 {[%clk
0:02:39]} 11... Nbd7 {[%clk 0:02:32.8]} 12. Nxe4 {[%clk 0:02:36.2]} 12... h6
{[%clk 0:02:20.1]} 13. Nxf6+ {[%clk 0:02:26.1]} 13... Nxf6 {[%clk 0:02:17.3]}
14. Bf4 {[%clk 0:02:26.1]} 14... Bb7 {[%clk 0:02:12.9]} 15. Nc3 {[%clk
0:02:25.4]} 15... Rc8 {[%clk 0:02:05.6]} 16. e4 {[%clk 0:02:23.1]} 16... Qd7
{[%clk 0:02:02]} 17. h3 {[%clk 0:02:06.6]} 17... b5 {[%clk 0:01:08]} 18. e5
{[%clk 0:02:03.1]} 18... Nh7 {[%clk 0:01:03.8]} 19. e6 {[%clk 0:01:29.7]} 19...
fxe6 {[%clk 0:00:57.2]} 20. dxe6 {[%clk 0:01:29.7]} 20... Qxd1 {[%clk
0:00:57.9]} 21. Raxd1 {[%clk 0:01:28.4]} 21... Bxg2 {[%clk 0:00:53.6]} 22. Kxg2
{[%clk 0:01:27.9]} 22... b4 {[%clk 0:00:50.8]} 23. Ne4 {[%clk 0:01:26.6]} 23...
Rxe6 {[%clk 0:00:47.5]} 24. Nxc5 {[%clk 0:01:25.4]} 24... Rxc5 {[%clk
0:00:47.5]} 25. Rd8+ {[%clk 0:01:17.3]} 25... Kf7 {[%clk 0:00:47.5]} 26. Rd7+
{[%clk 0:01:16.1]} 26... Re7 {[%clk 0:00:45.8]} 27. Rxe7+ {[%clk 0:01:10.3]}
27... Kxe7 {[%clk 0:00:46.7]} 28. Rd1 {[%clk 0:01:10.2]} 28... Rc2 {[%clk
0:00:38.7]} 29. Bd6+ {[%clk 0:01:06.8]} 29... Ke6 {[%clk 0:00:39.1]} 30. Bxb4
{[%clk 0:01:05.2]} 30... Rxb2 {[%clk 0:00:38.7]} 31. a3 {[%clk 0:01:04.7]} 31...
Nf6 {[%clk 0:00:36]} 32. Bc3 {[%clk 0:00:52.5]} 32... Rb3 {[%clk 0:00:32.9]} 33.
Bxf6 {[%clk 0:00:48.7]} 33... gxf6 {[%clk 0:00:32.6]} 34. Ra1 {[%clk 0:00:47.7]}
34... a5 {[%clk 0:00:27.7]} 35. a4 {[%clk 0:00:47.4]} 35... h5 {[%clk 0:00:26]}
36. h4 {[%clk 0:00:45.7]} 36... Rb4 {[%clk 0:00:22.8]} 37. Ra3 {[%clk
0:00:44.6]} 37... f5 {[%clk 0:00:20.5]} 38. Kf3 {[%clk 0:00:43.8]} 38... Ke5
{[%clk 0:00:19.9]} 39. Ke3 {[%clk 0:00:42.6]} 39... f4+ {[%clk 0:00:15.2]} 40.
Kf3 {[%clk 0:00:40]} 40... Kf5 {[%clk 0:00:14.3]} 41. Rc3 {[%clk 0:00:36.2]}
41... fxg3 {[%clk 0:00:12.6]} 42. Rc5+ {[%clk 0:00:32.8]} 42... Kg6 {[%clk
0:00:12.6]} 43. Rg5+ {[%clk 0:00:31.1]} 43... Kh6 {[%clk 0:00:12.2]} 44. Rxa5
{[%clk 0:00:30.9]} 44... gxf2 {[%clk 0:00:11.7]} 45. Ra6+ {[%clk 0:00:28.8]}
45... Kg7 {[%clk 0:00:11.2]} 46. Kxf2 {[%clk 0:00:28.3]} 46... Rxh4 {[%clk
0:00:11.7]} 47. a5 {[%clk 0:00:27.5]} 47... Ra4 {[%clk 0:00:12.1]} 48. Kg3
{[%clk 0:00:27]} 48... Kf7 {[%clk 0:00:12.1]} 49. Ra7+ {[%clk 0:00:25.2]} 49...
Ke6 {[%clk 0:00:12]} 50. Ra8 {[%clk 0:00:24.6]} 50... Kd7 {[%clk 0:00:12]} 51.
a6 {[%clk 0:00:24.3]} 51... Kc7 {[%clk 0:00:12.4]} 52. a7 {[%clk 0:00:23.5]}
52... h4+ {[%clk 0:00:12.8]} 53. Kh3 {[%clk 0:00:22.5]} 53... Kb7 {[%clk
0:00:13.7]} 54. Rh8 {[%clk 0:00:21.4]} 54... Kxa7 {[%clk 0:00:13.2]} 55. Rxh4
{[%clk 0:00:19.9]} 55... Ra3+ {[%clk 0:00:14.1]} 56. Kg2 {[%clk 0:00:19.6]}
56... Kb6 {[%clk 0:00:14.4]} 57. Kf2 {[%clk 0:00:19.5]} 57... Kc5 {[%clk
0:00:14.9]} 58. Rh1 {[%clk 0:00:19.2]} 58... Kd4 {[%clk 0:00:15.1]} 59. Rd1+
{[%clk 0:00:19.1]} 59... Ke4 {[%clk 0:00:15.8]} 60. Re1+ {[%clk 0:00:19.2]}
60... Kf4 {[%clk 0:00:16.4]} 61. Rb1 {[%clk 0:00:18.8]} 61... Ra2+ {[%clk
0:00:16.6]} 62. Kf1 {[%clk 0:00:18.8]} 62... Ra4 {[%clk 0:00:16.5]} 63. Rb3
{[%clk 0:00:18.4]} 63... Ke4 {[%clk 0:00:16.7]} 64. Rc3 {[%clk 0:00:18.3]} 64...
Rb4 {[%clk 0:00:16.6]} 65. Rh3 {[%clk 0:00:17.9]} 65... Rb1+ {[%clk 0:00:16]}
66. Kf2 {[%clk 0:00:18]} 66... Rb2+ {[%clk 0:00:16.4]} 67. Kg3 {[%clk 0:00:18]}
67... Re2 {[%clk 0:00:15.4]} 68. Kg4 {[%clk 0:00:16.8]} 68... Rg2+ {[%clk
0:00:15.1]} 69. Rg3 {[%clk 0:00:16.4]} 69... Rf2 {[%clk 0:00:15.6]} 70. Kg5
{[%clk 0:00:16.2]} 70... Rf8 {[%clk 0:00:15.4]} 71. Rh3 {[%clk 0:00:14.7]} 71...
Rg8+ {[%clk 0:00:15.3]} 72. Kf6 {[%clk 0:00:14.6]} 72... Rf8+ {[%clk 0:00:14.5]}
73. Ke7 {[%clk 0:00:14.3]} 73... Rf4 {[%clk 0:00:14.7]} 74. Rh1 {[%clk
0:00:13.6]} 74... Rg4 {[%clk 0:00:14.3]} 75. Ra1 {[%clk 0:00:12.3]} 75... Kd5
{[%clk 0:00:14.4]} 76. Rd1+ {[%clk 0:00:11.2]} 76... Kc6 {[%clk 0:00:14.6]} 77.
Rc1+ {[%clk 0:00:11.1]} 77... Kb5 {[%clk 0:00:15.2]} 78. Rb1+ {[%clk 0:00:11.2]}
78... Kc4 {[%clk 0:00:15.8]} 79. Rc1+ {[%clk 0:00:11.4]} 79... Kd5 {[%clk
0:00:16.5]} 80. Rd1+ {[%clk 0:00:11.6]} 80... Ke5 {[%clk 0:00:17.4]} 81. Re1+
{[%clk 0:00:11.6]} 81... Kf5 {[%clk 0:00:18]} 82. Rf1+ {[%clk 0:00:11.8]} 82...
Kg6 {[%clk 0:00:18.3]} 83. Re1 {[%clk 0:00:11.9]} 83... Rd4 {[%clk 0:00:18.1]}
84. Re2 {[%clk 0:00:11.6]} 84... Rd3 {[%clk 0:00:17.6]} 85. Rg2+ {[%clk
0:00:11.4]} 85... Kf5 {[%clk 0:00:18.2]} 86. Rf2+ {[%clk 0:00:11.6]} 86... Ke5
{[%clk 0:00:18.9]} 87. Re2+ {[%clk 0:00:11.8]} 87... Kd5 {[%clk 0:00:19.6]} 88.
Re1 {[%clk 0:00:11.9]} 88... Rd2 {[%clk 0:00:20.1]} 89. Re3 {[%clk 0:00:11.7]}
89... Rd4 {[%clk 0:00:20.2]} 90. Re1 {[%clk 0:00:11.5]} 90... Rd3 {[%clk
0:00:19.8]} 91. Kf6 {[%clk 0:00:11.2]} 91... Rf3+ {[%clk 0:00:19.6]} 92. Kg5
{[%clk 0:00:11.2]} 92... Rf2 {[%clk 0:00:19.5]} 93. Kg4 {[%clk 0:00:11.1]} 93...
Rf7 {[%clk 0:00:19]} 94. Kg3 {[%clk 0:00:11.1]} 94... Rg7+ {[%clk 0:00:18.7]}
95. Kf4 {[%clk 0:00:11.2]} 95... Rf7+ {[%clk 0:00:19.1]} 96. Kg5 {[%clk
0:00:11.2]} 96... Rf3 {[%clk 0:00:18.9]} 97. Kg4 {[%clk 0:00:11]} 97... Rd3
{[%clk 0:00:18.4]} 98. Kf4 {[%clk 0:00:09.9]} 98... Rd2 {[%clk 0:00:18.6]} 99.
Ke3 {[%clk 0:00:09.3]} 99... Rd4 {[%clk 0:00:18.6]} 100. Kf3 {[%clk 0:00:09.2]}
100... Kd6 {[%clk 0:00:18.3]} 101. Ke3 {[%clk 0:00:08.9]} 101... Rd5 {[%clk
0:00:18.7]} 102. Kf2 {[%clk 0:00:08.9]} 102... Rf5+ {[%clk 0:00:19.1]} 103. Kg3
{[%clk 0:00:08.9]} 103... Kd5 {[%clk 0:00:19.5]} 104. Kg4 {[%clk 0:00:08.8]}
104... Rf2 {[%clk 0:00:19.2]} 105. Rd1+ {[%clk 0:00:08.2]} 1/2-1/2

[Event "*** SCC Grand Prix: Titled Tuesday Blitz"]
[Site "Chess.com"]
[Date "2020.10.13"]
[Round "1"]
[White "Chessalary"]
[Black "Tayson_7"]
[Result "0-1"]
[WhiteElo "2267"]
[BlackElo "2602"]
[TimeControl "180+1"]
[EndTime "10:09:50 PDT"]
[Termination "Tayson_7 won by resignation"]

1. d4 {[%clk 0:03:00.3]} 1... d5 {[%clk 0:02:57.3]} 2. c4 {[%clk 0:02:59.7]}
2... e6 {[%clk 0:02:54.7]} 3. Nc3 {[%clk 0:02:59.8]} 3... c6 {[%clk 0:02:48.5]}
4. e3 {[%clk 0:02:59]} 4... Nf6 {[%clk 0:02:48]} 5. Nf3 {[%clk 0:02:59.2]} 5...
Bd6 {[%clk 0:02:46.3]} 6. Bd3 {[%clk 0:02:58.1]} 6... O-O {[%clk 0:02:45.9]} 7.
e4 {[%clk 0:02:58.1]} 7... dxe4 {[%clk 0:02:29.9]} 8. Nxe4 {[%clk 0:02:59]} 8...
Nxe4 {[%clk 0:02:29.8]} 9. Bxe4 {[%clk 0:02:59.4]} 9... Nd7 {[%clk 0:02:25.7]}
10. O-O {[%clk 0:02:53.2]} 10... Nf6 {[%clk 0:02:23.5]} 11. Bc2 {[%clk
0:02:51.6]} 11... c5 {[%clk 0:02:23.5]} 12. b3 {[%clk 0:02:44.4]} 12... b6
{[%clk 0:02:20.9]} 13. Bb2 {[%clk 0:02:43.7]} 13... Bb7 {[%clk 0:02:19.8]} 14.
Ne5 {[%clk 0:02:18.8]} 14... cxd4 {[%clk 0:02:17.5]} 15. Bxd4 {[%clk 0:02:19.7]}
15... Qc7 {[%clk 0:02:15.8]} 16. f4 {[%clk 0:02:15.9]} 16... Rad8 {[%clk
0:02:12.8]} 17. Qe2 {[%clk 0:02:11.9]} 17... Bc5 {[%clk 0:02:02]} 18. Bxc5
{[%clk 0:02:08.9]} 18... Qxc5+ {[%clk 0:02:02.9]} 19. Kh1 {[%clk 0:02:08.7]}
19... Rd4 {[%clk 0:02:01.2]} 20. Rad1 {[%clk 0:02:04]} 20... Rfd8 {[%clk
0:01:59]} 21. Rxd4 {[%clk 0:02:02.4]} 21... Rxd4 {[%clk 0:01:59.9]} 22. Rd1
{[%clk 0:01:54.6]} 22... Qd6 {[%clk 0:01:54.9]} 23. Rxd4 {[%clk 0:01:35.9]}
23... Qxd4 {[%clk 0:01:55.8]} 24. Qd1 {[%clk 0:01:23.8]} 24... Qxd1+ {[%clk
0:01:51.4]} 25. Bxd1 {[%clk 0:01:24.5]} 25... Kf8 {[%clk 0:01:43.3]} 26. Kg1
{[%clk 0:01:15.8]} 26... Ke7 {[%clk 0:01:43.2]} 27. Bc2 {[%clk 0:01:11.4]} 27...
Ne4 {[%clk 0:01:38.9]} 28. g3 {[%clk 0:01:00.3]} 28... f6 {[%clk 0:01:37.8]} 29.
Nd3 {[%clk 0:00:55.1]} 29... Kd6 {[%clk 0:01:37.7]} 30. Kf1 {[%clk 0:00:44.4]}
30... Nc3 {[%clk 0:01:31.8]} 31. a3 {[%clk 0:00:42.7]} 31... Be4 {[%clk
0:01:30.9]} 32. Kf2 {[%clk 0:00:35.9]} 32... Bf5 {[%clk 0:01:26.1]} 33. Ke3
{[%clk 0:00:31.5]} 33... h5 {[%clk 0:01:24.2]} 34. Nb4 {[%clk 0:00:28.8]} 34...
Bxc2 {[%clk 0:01:22]} 35. Nxc2 {[%clk 0:00:29.7]} 35... f5 {[%clk 0:01:11.9]}
36. Nd4 {[%clk 0:00:26.5]} 36... a6 {[%clk 0:01:10.4]} 37. a4 {[%clk 0:00:22.4]}
37... g6 {[%clk 0:01:07.7]} 38. Nf3 {[%clk 0:00:21.2]} 38... Ne4 {[%clk
0:01:05.2]} 39. Ne5 {[%clk 0:00:21.3]} 39... Nc5 {[%clk 0:00:56.6]} 40. b4
{[%clk 0:00:16.2]} 40... Nxa4 {[%clk 0:00:56.2]} 41. Nxg6 {[%clk 0:00:16.8]}
41... a5 {[%clk 0:00:55.4]} 42. bxa5 {[%clk 0:00:16.7]} 42... bxa5 {[%clk
0:00:56.3]} 43. Kd4 {[%clk 0:00:17.5]} 43... Nc5 {[%clk 0:00:54.3]} 44. Ne5
{[%clk 0:00:16.6]} 44... a4 {[%clk 0:00:51.3]} 45. Kc3 {[%clk 0:00:12.5]} 45...
a3 {[%clk 0:00:45]} 46. Nf7+ {[%clk 0:00:12]} 46... Ke7 {[%clk 0:00:42.4]} 47.
Ne5 {[%clk 0:00:12.9]} 47... Kf6 {[%clk 0:00:35.8]} 48. Nc6 {[%clk 0:00:10]}
48... Ne4+ {[%clk 0:00:35.3]} 49. Kb3 {[%clk 0:00:09.5]} 49... Nd2+ {[%clk
0:00:35.8]} 50. Kxa3 {[%clk 0:00:09.3]} 50... Nxc4+ {[%clk 0:00:36.5]} 51. Kb4
{[%clk 0:00:10.2]} 51... Ne3 {[%clk 0:00:37.1]} 52. Nd4 {[%clk 0:00:08.9]} 52...
h4 {[%clk 0:00:35.7]} 53. Nf3 {[%clk 0:00:08.8]} 53... hxg3 {[%clk 0:00:31.5]}
54. hxg3 {[%clk 0:00:09.7]} 54... Nf1 {[%clk 0:00:32.4]} 55. Kc3 {[%clk
0:00:09.4]} 55... Nxg3 {[%clk 0:00:32.6]} 56. Kd4 {[%clk 0:00:09.9]} 56... Ne2+
{[%clk 0:00:21.6]} 57. Ke3 {[%clk 0:00:09.5]} 57... Nc3 {[%clk 0:00:22.3]} 58.
Ne5 {[%clk 0:00:09.2]} 58... Nd5+ {[%clk 0:00:22.9]} 59. Kf3 {[%clk 0:00:09.2]}
59... Ke7 {[%clk 0:00:23.5]} 60. Nc6+ {[%clk 0:00:09.2]} 60... Kd6 {[%clk
0:00:23.9]} 61. Ne5 {[%clk 0:00:10.1]} 61... Ne7 {[%clk 0:00:23.2]} 62. Nf7+
{[%clk 0:00:10.3]} 62... Kd5 {[%clk 0:00:23.7]} 63. Ne5 {[%clk 0:00:11.2]} 63...
Nc8 {[%clk 0:00:20.9]} 64. Nf7 {[%clk 0:00:09.9]} 64... Na7 {[%clk 0:00:21.5]}
65. Ne5 {[%clk 0:00:10.1]} 65... Nb5 {[%clk 0:00:22.1]} 66. Ke3 {[%clk 0:00:08]}
66... Nd4 {[%clk 0:00:22.8]} 67. Ng6 {[%clk 0:00:08]} 67... Nc6 {[%clk
0:00:22.7]} 68. Kd3 {[%clk 0:00:08.1]} 68... Kd6 {[%clk 0:00:19.6]} 69. Kc4
{[%clk 0:00:08.6]} 69... Ne7 {[%clk 0:00:19.7]} 70. Ne5 {[%clk 0:00:08.2]} 70...
Nd5 {[%clk 0:00:20.2]} 71. Nf7+ {[%clk 0:00:07.8]} 71... Ke7 {[%clk 0:00:20.4]}
72. Ne5 {[%clk 0:00:08.2]} 72... Nxf4 {[%clk 0:00:21.1]} 73. Kd4 {[%clk
0:00:09.1]} 73... Nd5 {[%clk 0:00:21.2]} 74. Nc6+ {[%clk 0:00:08.8]} 74... Kd6
{[%clk 0:00:21.4]} 75. Ne5 {[%clk 0:00:09.7]} 75... Nf6 {[%clk 0:00:21.5]} 76.
Nc4+ {[%clk 0:00:09.7]} 76... Ke7 {[%clk 0:00:21.8]} 77. Ke5 {[%clk 0:00:10.2]}
77... Nd7+ {[%clk 0:00:22.7]} 78. Kf4 {[%clk 0:00:09.8]} 78... Kf6 {[%clk
0:00:23.3]} 79. Ne3 {[%clk 0:00:08.3]} 79... e5+ {[%clk 0:00:23.6]} 80. Kf3
{[%clk 0:00:08.9]} 80... Ke6 {[%clk 0:00:24.2]} 81. Nc4 {[%clk 0:00:08.7]} 81...
Nf6 {[%clk 0:00:24.7]} 82. Ne3 {[%clk 0:00:08.4]} 82... Nd5 {[%clk 0:00:25.3]}
83. Nc4 {[%clk 0:00:08.3]} 83... e4+ {[%clk 0:00:25.7]} 84. Ke2 {[%clk 0:00:09]}
84... f4 {[%clk 0:00:25.9]} 85. Nd2 {[%clk 0:00:09.6]} 85... Kf5 {[%clk
0:00:25.6]} 86. Nc4 {[%clk 0:00:10.5]} 86... f3+ {[%clk 0:00:25.6]} 87. Kf2
{[%clk 0:00:09.8]} 87... Kf4 {[%clk 0:00:26.5]} 88. Nd6 {[%clk 0:00:08.7]} 88...
e3+ {[%clk 0:00:26.7]} 89. Kf1 {[%clk 0:00:09.3]} 89... Nc3 {[%clk 0:00:25.4]}
90. Nc4 {[%clk 0:00:08.8]} 90... Ne4 {[%clk 0:00:25.5]} 0-1

[Event "*** SCC Grand Prix: Titled Tuesday Blitz"]
[Site "Chess.com"]
[Date "2020.10.13"]
[Round "2"]
[White "MFBerna"]
[Black "AntonovaNadezhda"]
[Result "1-0"]
[WhiteElo "2387"]
[BlackElo "2078"]
[TimeControl "180+1"]
[EndTime "10:12:50 PDT"]
[Termination "MFBerna won by resignation"]

1. e4 {[%clk 0:03:00.9]} 1... c5 {[%clk 0:02:59.5]} 2. Nf3 {[%clk 0:03:00.9]}
2... d6 {[%clk 0:03:00]} 3. d4 {[%clk 0:02:57.3]} 3... cxd4 {[%clk 0:03:00.3]}
4. Qxd4 {[%clk 0:02:58.2]} 4... Nf6 {[%clk 0:02:53.9]} 5. Nc3 {[%clk 0:02:56.1]}
5... e5 {[%clk 0:02:53.7]} 6. Bb5+ {[%clk 0:02:46.9]} 6... Nbd7 {[%clk
0:02:48.1]} 7. Qd3 {[%clk 0:02:45.1]} 7... a6 {[%clk 0:02:48.2]} 8. Bxd7+ {[%clk
0:02:44.3]} 8... Bxd7 {[%clk 0:02:48.3]} 9. Bg5 {[%clk 0:02:44.5]} 9... Be7
{[%clk 0:02:48.5]} 10. Bxf6 {[%clk 0:02:43]} 10... gxf6 {[%clk 0:02:48.5]} 11.
Nd5 {[%clk 0:02:41.8]} 11... Be6 {[%clk 0:02:42.9]} 12. O-O-O {[%clk 0:02:33.4]}
12... Rc8 {[%clk 0:02:39.1]} 13. Kb1 {[%clk 0:02:33.2]} 13... Rc6 {[%clk
0:02:31.8]} 14. Nh4 {[%clk 0:02:32]} 14... O-O {[%clk 0:02:26]} 15. g4 {[%clk
0:02:25.8]} 15... Kh8 {[%clk 0:02:19.9]} 16. Nf5 {[%clk 0:02:24.8]} 16... Bxf5
{[%clk 0:02:16.8]} 17. gxf5 {[%clk 0:02:25.7]} 17... Qd7 {[%clk 0:02:09.6]} 18.
Rhg1 {[%clk 0:02:22.7]} 18... Bd8 {[%clk 0:02:07.1]} 19. Qg3 {[%clk 0:02:20.1]}
1-0

[Event "*** SCC Grand Prix: Titled Tuesday Blitz"]
[Site "Chess.com"]
[Date "2020.10.13"]
[Round "2"]
[White "ENajer77"]
[Black "CarlssonLudvig"]
[Result "1-0"]
[WhiteElo "2706"]
[BlackElo "2470"]
[TimeControl "180+1"]
[EndTime "10:13:12 PDT"]
[Termination "ENajer77 won by resignation"]

1. e4 {[%clk 0:02:24.9]} 1... e5 {[%clk 0:02:59.2]} 2. Nf3 {[%clk 0:02:24.1]}
2... Nc6 {[%clk 0:02:58.9]} 3. Bb5 {[%clk 0:02:23.4]} 3... a6 {[%clk 0:02:58.7]}
4. Ba4 {[%clk 0:02:23.1]} 4... Nf6 {[%clk 0:02:58.8]} 5. O-O {[%clk 0:02:22.4]}
5... Be7 {[%clk 0:02:58.7]} 6. d3 {[%clk 0:02:21.6]} 6... b5 {[%clk 0:02:56.8]}
7. Bb3 {[%clk 0:02:21.7]} 7... d6 {[%clk 0:02:56.2]} 8. a4 {[%clk 0:02:20.6]}
8... Bb7 {[%clk 0:02:51.2]} 9. Nbd2 {[%clk 0:02:16.1]} 9... O-O {[%clk
0:02:49.1]} 10. Re1 {[%clk 0:02:16.5]} 10... Nd7 {[%clk 0:02:47.7]} 11. Nf1
{[%clk 0:02:14.9]} 11... Nc5 {[%clk 0:02:46.4]} 12. axb5 {[%clk 0:02:08.8]}
12... axb5 {[%clk 0:02:42.4]} 13. Rxa8 {[%clk 0:02:08.7]} 13... Qxa8 {[%clk
0:02:43.3]} 14. Bd5 {[%clk 0:02:09]} 14... Qa1 {[%clk 0:02:22.3]} 15. Ng3 {[%clk
0:02:05.3]} 15... Ra8 {[%clk 0:02:18.5]} 16. Nf5 {[%clk 0:01:55.1]} 16... Bf8
{[%clk 0:02:17.8]} 17. Ng5 {[%clk 0:01:49.1]} 17... Nd8 {[%clk 0:02:00.8]} 18.
Qh5 {[%clk 0:01:46.9]} 1-0